[Event "*** Titled Tuesday Blitz"]
[Site "Chess.com"]
[Date "2021.04.20"]
[Round "3"]
[White "NTBT_DHS"]
[Black "svilson23"]
[Result "1-0"]
[WhiteElo "2705"]
[BlackElo "2259"]
[TimeControl "180+1"]
[EndTime "10:27:42 PDT"]
[Termination "NTBT_DHS won by resignation"]

1. d4 {[%clk 0:03:00.9]} 1... d5 {[%clk 0:03:00.5]} 2. c4 {[%clk 0:03:00.4]}
2... e6 {[%clk 0:03:01.1]} 3. Nf3 {[%clk 0:02:59.6]} 3... c6 {[%clk 0:03:00.4]}
4. Nbd2 {[%clk 0:02:57.5]} 4... f5 {[%clk 0:02:58.7]} 5. g3 {[%clk 0:02:56.3]}
5... Nf6 {[%clk 0:02:58.7]} 6. Bg2 {[%clk 0:02:56.7]} 6... Bd6 {[%clk
0:02:59.2]} 7. O-O {[%clk 0:02:57.2]} 7... Nbd7 {[%clk 0:02:56.3]} 8. b3 {[%clk
0:02:55.9]} 8... O-O {[%clk 0:02:54.8]} 9. Bb2 {[%clk 0:02:55.9]} 9... Ne4
{[%clk 0:02:53.3]} 10. Ne1 {[%clk 0:02:55.8]} 10... Nxd2 {[%clk 0:02:36.9]} 11.
Qxd2 {[%clk 0:02:55.7]} 11... dxc4 {[%clk 0:02:37.5]} 12. bxc4 {[%clk
0:02:55.8]} 12... e5 {[%clk 0:02:37.4]} 13. c5 {[%clk 0:02:40.5]} 13... Bc7
{[%clk 0:02:31.5]} 14. d5 {[%clk 0:02:31.4]} 14... cxd5 {[%clk 0:02:26.5]} 15.
Qxd5+ {[%clk 0:02:27.5]} 15... Kh8 {[%clk 0:02:26.2]} 16. Rd1 {[%clk 0:02:21.3]}
16... Qe7 {[%clk 0:02:25.7]} 17. c6 {[%clk 0:02:01.2]} 17... bxc6 {[%clk
0:02:21.5]} 18. Qxc6 {[%clk 0:02:02.1]} 18... Nb6 {[%clk 0:02:16.4]} 19. Ba3
{[%clk 0:01:49.5]} 19... Qxa3 {[%clk 0:02:02.1]} 20. Qxc7 {[%clk 0:01:47.7]}
20... e4 {[%clk 0:01:49.9]} 21. Nc2 {[%clk 0:00:57.5]} 21... Qa4 {[%clk
0:01:49.2]} 22. Rd8 {[%clk 0:00:45.7]} 22... Be6 {[%clk 0:01:41.3]} 23. Rxa8
{[%clk 0:00:37.7]} 23... Rxa8 {[%clk 0:01:41.9]} 24. h4 {[%clk 0:00:34.7]} 24...
Rc8 {[%clk 0:01:23.3]} 25. Qe5 {[%clk 0:00:34.1]} 25... Bd7 {[%clk 0:00:40.7]}
26. Ne3 {[%clk 0:00:31.6]} 26... Re8 {[%clk 0:00:31]} 27. Qa1 {[%clk 0:00:31.6]}
27... Be6 {[%clk 0:00:25.8]} 28. a3 {[%clk 0:00:31]} 28... h6 {[%clk 0:00:20.5]}
29. Bh3 {[%clk 0:00:30.2]} 29... Qb5 {[%clk 0:00:18.6]} 30. Rb1 {[%clk
0:00:29.4]} 30... Qxe2 {[%clk 0:00:16.8]} 31. Bxf5 {[%clk 0:00:29.8]} 31... Bxf5
{[%clk 0:00:15.8]} 32. Nxf5 {[%clk 0:00:29.8]} 32... Qg4 {[%clk 0:00:16.1]} 33.
Ne3 {[%clk 0:00:26.6]} 33... Qe6 {[%clk 0:00:15.9]} 34. Qd4 {[%clk 0:00:25.1]}
34... Rf8 {[%clk 0:00:15.5]} 35. Rb5 {[%clk 0:00:24.8]} 35... Qf7 {[%clk
0:00:12.7]} 36. Ng4 {[%clk 0:00:23.5]} 36... Qe6 {[%clk 0:00:10.5]} 37. Ne5
{[%clk 0:00:20]} 37... e3 {[%clk 0:00:09.6]} 38. Qxe3 {[%clk 0:00:18.7]} 38...
Nd5 {[%clk 0:00:09]} 39. Qe4 {[%clk 0:00:16.9]} 39... Ne7 {[%clk 0:00:06.8]} 40.
Rb7 {[%clk 0:00:15.1]} 40... Nd5 {[%clk 0:00:03.1]} 41. Ng6+ {[%clk 0:00:15]}
1-0

[Event "*** Titled Tuesday Blitz"]
[Site "Chess.com"]
[Date "2021.04.20"]
[Round "3"]
[White "GM_dmitrij"]
[Black "Gahan-MG"]
[Result "1-0"]
[WhiteElo "2901"]
[BlackElo "2624"]
[TimeControl "180+1"]
[EndTime "10:27:47 PDT"]
[Termination "GM_dmitrij won by resignation"]

1. e4 {[%clk 0:03:00.9]} 1... c5 {[%clk 0:03:00.1]} 2. Nf3 {[%clk 0:03:00]} 2...
d6 {[%clk 0:03:00.6]} 3. Bb5+ {[%clk 0:02:58.8]} 3... Bd7 {[%clk 0:03:00.5]} 4.
Bxd7+ {[%clk 0:02:58.7]} 4... Qxd7 {[%clk 0:03:01.4]} 5. c4 {[%clk 0:02:59.1]}
5... Nc6 {[%clk 0:03:01.3]} 6. Nc3 {[%clk 0:02:59.6]} 6... Nf6 {[%clk
0:03:01.4]} 7. d4 {[%clk 0:02:59.2]} 7... cxd4 {[%clk 0:03:01.3]} 8. Nxd4 {[%clk
0:03:00.1]} 8... e6 {[%clk 0:03:00.4]} 9. O-O {[%clk 0:02:58.3]} 9... Be7 {[%clk
0:03:00.9]} 10. Be3 {[%clk 0:02:57.9]} 10... O-O {[%clk 0:03:00.9]} 11. Rc1
{[%clk 0:02:57.8]} 11... Rac8 {[%clk 0:03:01]} 12. b3 {[%clk 0:02:58]} 12...
Rfd8 {[%clk 0:03:00.8]} 13. f4 {[%clk 0:02:53.5]} 13... a6 {[%clk 0:03:00.2]}
14. Kh1 {[%clk 0:02:50.1]} 14... Nxd4 {[%clk 0:02:56.1]} 15. Qxd4 {[%clk
0:02:51]} 15... Qc6 {[%clk 0:02:55.9]} 16. a4 {[%clk 0:02:37]} 16... Ng4 {[%clk
0:02:31.6]} 17. Bg1 {[%clk 0:02:28.6]} 17... Bf6 {[%clk 0:02:30.6]} 18. Qd3
{[%clk 0:02:27.6]} 18... Bxc3 {[%clk 0:02:26.9]} 19. Rxc3 {[%clk 0:02:28.5]}
19... Nf6 {[%clk 0:02:26]} 20. Re1 {[%clk 0:02:20.5]} 20... b5 {[%clk
0:02:25.6]} 21. axb5 {[%clk 0:02:12.9]} 21... axb5 {[%clk 0:02:25.1]} 22. Bd4
{[%clk 0:02:13.5]} 22... e5 {[%clk 0:02:18.1]} 23. cxb5 {[%clk 0:02:11.2]} 23...
Qb7 {[%clk 0:02:11.4]} 24. Rxc8 {[%clk 0:02:07.9]} 24... Qxc8 {[%clk 0:02:08.5]}
25. Bg1 {[%clk 0:01:43.1]} 25... exf4 {[%clk 0:02:05.4]} 26. b6 {[%clk
0:01:43.1]} 26... Qc6 {[%clk 0:02:02.1]} 27. e5 {[%clk 0:01:36]} 27... Nd5
{[%clk 0:01:33.5]} 28. Qc4 {[%clk 0:01:34.6]} 28... Qb7 {[%clk 0:01:25.1]} 29.
exd6 {[%clk 0:01:33.8]} 29... f3 {[%clk 0:01:11.7]} 30. gxf3 {[%clk 0:01:34.7]}
30... Nxb6 {[%clk 0:01:02.7]} 31. Qe4 {[%clk 0:01:29.9]} 31... Qxe4 {[%clk
0:00:43.5]} 32. fxe4 {[%clk 0:01:29.9]} 32... Nc8 {[%clk 0:00:41.7]} 33. e5
{[%clk 0:01:29.6]} 33... f6 {[%clk 0:00:41.5]} 34. e6 {[%clk 0:01:12.2]} 34...
Nxd6 {[%clk 0:00:40.4]} 35. Rd1 {[%clk 0:01:12]} 35... Kf8 {[%clk 0:00:37.2]}
36. Bb6 {[%clk 0:01:11.9]} 36... Rc8 {[%clk 0:00:29.5]} 37. Rxd6 {[%clk
0:01:10.5]} 37... Ke7 {[%clk 0:00:30]} 38. Rd7+ {[%clk 0:01:10.6]} 38... Kxe6
{[%clk 0:00:30.4]} 39. Rxg7 {[%clk 0:01:11.2]} 39... Rb8 {[%clk 0:00:28.1]} 40.
Bf2 {[%clk 0:01:06.6]} 40... Rxb3 {[%clk 0:00:24.7]} 41. Rxh7 {[%clk 0:01:07]}
41... Kf5 {[%clk 0:00:24.8]} 42. Kg2 {[%clk 0:01:07]} 42... Kg6 {[%clk
0:00:24.7]} 43. Rh3 {[%clk 0:01:05.9]} 43... Rb2 {[%clk 0:00:23.4]} 44. Rg3+
{[%clk 0:01:04.8]} 44... Kh5 {[%clk 0:00:23.6]} 45. Rf3 {[%clk 0:01:04.2]} 45...
Kg6 {[%clk 0:00:21.8]} 46. Kg3 {[%clk 0:01:04.4]} 46... f5 {[%clk 0:00:22.2]}
47. h3 {[%clk 0:00:59.8]} 47... Kg5 {[%clk 0:00:21]} 48. h4+ {[%clk 0:00:57.1]}
48... Kg6 {[%clk 0:00:20.2]} 49. Rd3 {[%clk 0:00:56.2]} 49... Rb4 {[%clk
0:00:20.1]} 50. Kf3 {[%clk 0:00:54.7]} 50... Kh5 {[%clk 0:00:19]} 51. Bg3 {[%clk
0:00:50]} 51... f4 {[%clk 0:00:15.5]} 52. Rd5+ {[%clk 0:00:48.7]} 52... Kg6
{[%clk 0:00:15.5]} 53. Bf2 {[%clk 0:00:49.3]} 53... Ra4 {[%clk 0:00:14.2]} 54.
Kg4 {[%clk 0:00:47.6]} 54... Kh6 {[%clk 0:00:13.2]} 55. Rd6+ {[%clk 0:00:47.2]}
55... Kg7 {[%clk 0:00:13.7]} 56. h5 {[%clk 0:00:45]} 56... Kh7 {[%clk
0:00:11.2]} 57. Bd4 {[%clk 0:00:43.7]} 1-0

[Event "*** Titled Tuesday Blitz"]
[Site "Chess.com"]
[Date "2021.04.20"]
[Round "3"]
[White "Aygehovit1992"]
[Black "Hikaru"]
[Result "0-1"]
[WhiteElo "2681"]
[BlackElo "3163"]
[TimeControl "180+1"]
[EndTime "10:27:48 PDT"]
[Termination "Hikaru won by resignation"]

1. e4 {[%clk 0:03:00.9]} 1... e5 {[%clk 0:02:57]} 2. Nf3 {[%clk 0:03:00.8]} 2...
Nc6 {[%clk 0:02:57.2]} 3. Bb5 {[%clk 0:03:00.9]} 3... Nge7 {[%clk 0:02:55]} 4.
Nc3 {[%clk 0:02:58.9]} 4... a6 {[%clk 0:02:54.6]} 5. Bc4 {[%clk 0:02:57.3]} 5...
b5 {[%clk 0:02:46.9]} 6. Bb3 {[%clk 0:02:56.9]} 6... Ng6 {[%clk 0:02:44.6]} 7.
h4 {[%clk 0:02:55.7]} 7... Bc5 {[%clk 0:02:35.3]} 8. h5 {[%clk 0:02:49.1]} 8...
Nf4 {[%clk 0:02:34.8]} 9. g3 {[%clk 0:02:14.2]} 9... Ne6 {[%clk 0:02:34.1]} 10.
d3 {[%clk 0:02:10.1]} 10... d6 {[%clk 0:02:31.2]} 11. Bd5 {[%clk 0:01:58.1]}
11... Bd7 {[%clk 0:02:30.9]} 12. a4 {[%clk 0:01:58]} 12... b4 {[%clk 0:02:29.3]}
13. Nb1 {[%clk 0:01:43.2]} 13... Rb8 {[%clk 0:02:19]} 14. Nbd2 {[%clk
0:01:43.2]} 14... O-O {[%clk 0:02:05.2]} 15. Nb3 {[%clk 0:01:36.2]} 15... Ba7
{[%clk 0:02:04.8]} 16. Nh4 {[%clk 0:01:24.1]} 16... Ne7 {[%clk 0:01:44.3]} 17.
Bc4 {[%clk 0:01:16.7]} 17... c6 {[%clk 0:01:44.4]} 18. Be3 {[%clk 0:01:05.8]}
18... Bxe3 {[%clk 0:01:41.1]} 19. fxe3 {[%clk 0:01:06.7]} 19... d5 {[%clk
0:01:35.4]} 20. exd5 {[%clk 0:01:06.8]} 20... cxd5 {[%clk 0:01:35.4]} 21. Bxa6
{[%clk 0:01:07]} 21... Qb6 {[%clk 0:01:35.4]} 22. Bb5 {[%clk 0:01:07.1]} 22...
Bxb5 {[%clk 0:01:32]} 23. axb5 {[%clk 0:01:08]} 23... Qxe3+ {[%clk 0:01:32.1]}
24. Qe2 {[%clk 0:01:08.4]} 24... Qxg3+ {[%clk 0:01:32.2]} 25. Qf2 {[%clk
0:01:06.4]} 25... Qxf2+ {[%clk 0:01:31.9]} 26. Kxf2 {[%clk 0:01:07.3]} 26...
Rxb5 {[%clk 0:01:31.8]} 27. Rhe1 {[%clk 0:00:55.9]} 27... f6 {[%clk 0:01:17.1]}
28. Ra7 {[%clk 0:00:55.6]} 28... Nc6 {[%clk 0:01:08.3]} 29. Rd7 {[%clk
0:00:55.4]} 29... Rd8 {[%clk 0:01:05.9]} 30. Rxd8+ {[%clk 0:00:53.5]} 30...
Ncxd8 {[%clk 0:01:02.5]} 31. Ra1 {[%clk 0:00:54.4]} 31... Rb8 {[%clk 0:01:00.2]}
32. Ra6 {[%clk 0:00:50]} 32... Rc8 {[%clk 0:00:59.3]} 33. Ke3 {[%clk 0:00:38.1]}
33... Rxc2 {[%clk 0:00:57.6]} 34. Nf5 {[%clk 0:00:38.5]} 34... Rxb2 {[%clk
0:00:51.4]} 35. Na5 {[%clk 0:00:38.5]} 35... d4+ {[%clk 0:00:44.2]} 36. Kf3
{[%clk 0:00:37.9]} 36... Ra2 {[%clk 0:00:43.5]} 37. Ra7 {[%clk 0:00:34.3]} 37...
h6 {[%clk 0:00:36.9]} 38. Ne7+ {[%clk 0:00:32.7]} 38... Kh7 {[%clk 0:00:29.9]}
39. Nd5 {[%clk 0:00:32.8]} 39... Kh8 {[%clk 0:00:27]} 40. Nxb4 {[%clk 0:00:26]}
40... Rh2 {[%clk 0:00:27]} 41. Ra8 {[%clk 0:00:23.7]} 41... Kh7 {[%clk
0:00:26.2]} 42. Ke4 {[%clk 0:00:18.8]} 42... Rxh5 {[%clk 0:00:25.4]} 43. Rc8
{[%clk 0:00:16.3]} 43... Nf7 {[%clk 0:00:24.7]} 44. Kd5 {[%clk 0:00:15.4]} 44...
Nf4+ {[%clk 0:00:25.2]} 45. Kc6 {[%clk 0:00:14.5]} 45... e4 {[%clk 0:00:24.8]}
46. Nb3 {[%clk 0:00:12.7]} 46... Nxd3 {[%clk 0:00:22.2]} 47. Nd5 {[%clk
0:00:10.1]} 47... Nde5+ {[%clk 0:00:18.8]} 48. Kc5 {[%clk 0:00:10.5]} 48... d3
{[%clk 0:00:19]} 49. Nd4 {[%clk 0:00:09.7]} 49... Nd7+ {[%clk 0:00:19.2]} 50.
Kc6 {[%clk 0:00:09.2]} 50... Rxd5 {[%clk 0:00:20.1]} 0-1

[Event "*** Titled Tuesday Blitz"]
[Site "Chess.com"]
[Date "2021.04.20"]
[Round "3"]
[White "AttractiveMustard"]
[Black "Ermito2020"]
[Result "0-1"]
[WhiteElo "2391"]
[BlackElo "2601"]
[TimeControl "180+1"]
[EndTime "10:27:50 PDT"]
[Termination "Ermito2020 won on time"]

1. d4 {[%clk 0:03:00]} 1... d5 {[%clk 0:02:57.8]} 2. c4 {[%clk 0:02:59.9]} 2...
e6 {[%clk 0:02:58]} 3. Nf3 {[%clk 0:03:00.1]} 3... Nf6 {[%clk 0:02:57.2]} 4. g3
{[%clk 0:03:00.4]} 4... c6 {[%clk 0:02:57]} 5. Qc2 {[%clk 0:03:00]} 5... Be7
{[%clk 0:02:54.9]} 6. Bg2 {[%clk 0:02:59.7]} 6... O-O {[%clk 0:02:52.9]} 7. O-O
{[%clk 0:02:59.3]} 7... b6 {[%clk 0:02:53.1]} 8. Rd1 {[%clk 0:02:58.1]} 8... Ba6
{[%clk 0:02:52]} 9. b3 {[%clk 0:02:57.7]} 9... Nbd7 {[%clk 0:02:51.7]} 10. a4
{[%clk 0:02:53.3]} 10... Rc8 {[%clk 0:02:50.5]} 11. a5 {[%clk 0:02:51.8]} 11...
b5 {[%clk 0:02:09.3]} 12. c5 {[%clk 0:02:19.4]} 12... Ra8 {[%clk 0:02:04.7]} 13.
b4 {[%clk 0:02:16.4]} 13... Bc8 {[%clk 0:02:04.2]} 14. Nc3 {[%clk 0:02:09.3]}
14... Re8 {[%clk 0:02:02.8]} 15. e4 {[%clk 0:02:08.2]} 15... dxe4 {[%clk
0:02:02]} 16. Nxe4 {[%clk 0:02:08.4]} 16... Nxe4 {[%clk 0:01:54.4]} 17. Qxe4
{[%clk 0:02:07.8]} 17... Nf6 {[%clk 0:01:46.3]} 18. Qxc6 {[%clk 0:01:33.9]}
18... Bd7 {[%clk 0:01:45.1]} 19. Qb7 {[%clk 0:01:33.9]} 19... Nd5 {[%clk
0:01:42.6]} 20. c6 {[%clk 0:01:23.9]} 20... Bxc6 {[%clk 0:01:22.5]} 21. Qxc6
{[%clk 0:01:24.8]} 21... Rc8 {[%clk 0:01:22.7]} 22. Qxb5 {[%clk 0:00:57.3]}
22... Nc3 {[%clk 0:01:21.2]} 23. Qd3 {[%clk 0:00:57.7]} 23... Nxd1 {[%clk
0:01:20.8]} 24. Qxd1 {[%clk 0:00:58.6]} 24... Bxb4 {[%clk 0:01:21.1]} 25. Bd2
{[%clk 0:00:51.1]} 25... Bxd2 {[%clk 0:01:13.8]} 26. Qxd2 {[%clk 0:00:52]} 26...
Qc7 {[%clk 0:01:13]} 27. a6 {[%clk 0:00:43.9]} 27... Red8 {[%clk 0:01:11.9]} 28.
Rb1 {[%clk 0:00:31]} 28... h6 {[%clk 0:01:10.7]} 29. h4 {[%clk 0:00:29.2]} 29...
Qd6 {[%clk 0:01:09.6]} 30. Qe2 {[%clk 0:00:24.8]} 30... Rc6 {[%clk 0:01:06.5]}
31. Ra1 {[%clk 0:00:23.7]} 31... Rdc8 {[%clk 0:01:04.5]} 32. Ne5 {[%clk
0:00:19.3]} 32... Rc1+ {[%clk 0:01:02.6]} 33. Rxc1 {[%clk 0:00:18.2]} 33...
Rxc1+ {[%clk 0:01:03.5]} 34. Kh2 {[%clk 0:00:18.3]} 34... Qxd4 {[%clk
0:01:03.6]} 35. Nc6 {[%clk 0:00:13.8]} 35... Qb6 {[%clk 0:01:03.2]} 36. Ne5
{[%clk 0:00:04.6]} 36... Ra1 {[%clk 0:01:02.8]} 37. Qf3 {[%clk 0:00:04.4]} 37...
Qc7 {[%clk 0:00:53.9]} 38. Qa8+ {[%clk 0:00:04.3]} 38... Kh7 {[%clk 0:00:53.9]}
39. Qb7 {[%clk 0:00:05]} 39... Qxe5 {[%clk 0:00:52.1]} 40. Qxa7 {[%clk
0:00:03.9]} 40... Qe2 {[%clk 0:00:47.9]} 41. Bb7 {[%clk 0:00:02.2]} 41... g5
{[%clk 0:00:36.1]} 42. hxg5 {[%clk 0:00:01.4]} 42... hxg5 {[%clk 0:00:37]} 43.
Qe3 {[%clk 0:00:01.2]} 43... Qh5+ {[%clk 0:00:35]} 0-1

[Event "*** Titled Tuesday Blitz"]
[Site "Chess.com"]
[Date "2021.04.20"]
[Round "3"]
[White "Genghis_K"]
[Black "UnknownxArmy"]
[Result "1/2-1/2"]
[WhiteElo "2922"]
[BlackElo "2472"]
[TimeControl "180+1"]
[EndTime "10:27:51 PDT"]
[Termination "Game drawn by stalemate"]

1. e4 {[%clk 0:03:00.9]} 1... e5 {[%clk 0:02:58.3]} 2. Nf3 {[%clk 0:02:58.3]}
2... Nc6 {[%clk 0:02:58.7]} 3. d4 {[%clk 0:02:54]} 3... exd4 {[%clk 0:02:59.6]}
4. Nxd4 {[%clk 0:02:54.9]} 4... Nf6 {[%clk 0:02:59.7]} 5. Nc3 {[%clk 0:02:54.7]}
5... Bb4 {[%clk 0:02:57.1]} 6. Nxc6 {[%clk 0:02:54.6]} 6... bxc6 {[%clk
0:02:58]} 7. Bd3 {[%clk 0:02:55.1]} 7... d5 {[%clk 0:02:57.9]} 8. Bd2 {[%clk
0:02:54.6]} 8... O-O {[%clk 0:02:51.3]} 9. O-O {[%clk 0:02:54.3]} 9... Bxc3
{[%clk 0:02:28.4]} 10. Bxc3 {[%clk 0:02:55.2]} 10... Nxe4 {[%clk 0:02:28.1]} 11.
Bxe4 {[%clk 0:02:53.7]} 11... dxe4 {[%clk 0:02:28.5]} 12. Qh5 {[%clk 0:02:51.9]}
12... Qd5 {[%clk 0:02:15]} 13. Qe5 {[%clk 0:02:47.9]} 13... Qxe5 {[%clk
0:02:10.6]} 14. Bxe5 {[%clk 0:02:48.8]} 14... Be6 {[%clk 0:02:00.7]} 15. Rfe1
{[%clk 0:02:37.1]} 15... f5 {[%clk 0:01:57.8]} 16. Bxc7 {[%clk 0:02:34.4]} 16...
Rac8 {[%clk 0:01:57.4]} 17. Bf4 {[%clk 0:02:33.6]} 17... Rfd8 {[%clk 0:01:52.9]}
18. Rad1 {[%clk 0:02:31.7]} 18... Kf7 {[%clk 0:01:50.8]} 19. a3 {[%clk
0:02:28.4]} 19... Ke8 {[%clk 0:01:45.5]} 20. Be3 {[%clk 0:02:19.3]} 20... a6
{[%clk 0:01:29.3]} 21. b4 {[%clk 0:02:17.8]} 21... Rxd1 {[%clk 0:01:28.4]} 22.
Rxd1 {[%clk 0:02:17.9]} 22... Rd8 {[%clk 0:01:29.3]} 23. Re1 {[%clk 0:02:18.2]}
23... Kf7 {[%clk 0:01:26.9]} 24. h4 {[%clk 0:02:18.5]} 24... g6 {[%clk
0:01:26.3]} 25. Kh2 {[%clk 0:02:18]} 25... Rd5 {[%clk 0:00:47.1]} 26. Kg3 {[%clk
0:02:16.2]} 26... Kg7 {[%clk 0:00:33.8]} 27. a4 {[%clk 0:02:08.8]} 27... h6
{[%clk 0:00:30.7]} 28. Ra1 {[%clk 0:02:06.5]} 28... Rd7 {[%clk 0:00:24.7]} 29.
Ra3 {[%clk 0:02:06.1]} 29... Rb7 {[%clk 0:00:24.8]} 30. Rc3 {[%clk 0:02:03.3]}
30... Bd5 {[%clk 0:00:23.4]} 31. Bc5 {[%clk 0:01:59.5]} 31... g5 {[%clk
0:00:23.3]} 32. hxg5 {[%clk 0:01:51.9]} 32... hxg5 {[%clk 0:00:24.2]} 33. a5
{[%clk 0:01:52.6]} 33... Kg6 {[%clk 0:00:22.8]} 34. f4 {[%clk 0:01:50.3]} 34...
exf3 {[%clk 0:00:20.7]} 35. gxf3 {[%clk 0:01:50.4]} 35... f4+ {[%clk 0:00:20.6]}
36. Kf2 {[%clk 0:01:49.8]} 36... Rh7 {[%clk 0:00:21]} 37. b5 {[%clk 0:01:28.9]}
37... cxb5 {[%clk 0:00:17.9]} 38. Rd3 {[%clk 0:01:29.5]} 38... Bc4 {[%clk
0:00:16.3]} 39. Rd6+ {[%clk 0:01:29.7]} 39... Kf7 {[%clk 0:00:11.2]} 40. Rxa6
{[%clk 0:01:28.4]} 40... Rh2+ {[%clk 0:00:10.7]} 41. Kg1 {[%clk 0:01:27.8]}
41... Rxc2 {[%clk 0:00:09.8]} 42. Rc6 {[%clk 0:01:26.1]} 42... Rc1+ {[%clk
0:00:06.2]} 43. Kg2 {[%clk 0:01:25]} 43... Rc2+ {[%clk 0:00:06.5]} 44. Kg1
{[%clk 0:01:22.3]} 44... Rc1+ {[%clk 0:00:06.9]} 45. Kf2 {[%clk 0:01:23]} 45...
Rf1+ {[%clk 0:00:06.7]} 46. Kg2 {[%clk 0:01:23]} 46... Rc1 {[%clk 0:00:07.3]}
47. a6 {[%clk 0:01:21.6]} 47... Rc2+ {[%clk 0:00:07.7]} 48. Kg1 {[%clk
0:01:21.6]} 48... Rc1+ {[%clk 0:00:08]} 49. Kf2 {[%clk 0:01:22.3]} 49... Rc2+
{[%clk 0:00:08.6]} 50. Ke1 {[%clk 0:01:22.8]} 50... Ra2 {[%clk 0:00:05.5]} 51.
a7 {[%clk 0:01:22.9]} 51... Bd5 {[%clk 0:00:05.8]} 52. Rd6 {[%clk 0:01:22.1]}
52... Bxf3 {[%clk 0:00:06]} 53. Bd4 {[%clk 0:01:16]} 53... Ke7 {[%clk
0:00:06.5]} 54. Rg6 {[%clk 0:01:15.8]} 54... g4 {[%clk 0:00:06.4]} 55. Rf6
{[%clk 0:01:13.8]} 55... Rxa7 {[%clk 0:00:03.5]} 56. Rxf4 {[%clk 0:01:12.3]}
56... Ra4 {[%clk 0:00:04.1]} 57. Bc5+ {[%clk 0:01:08.5]} 57... Ke6 {[%clk
0:00:01.5]} 58. Rxa4 {[%clk 0:01:07.2]} 58... bxa4 {[%clk 0:00:01.9]} 59. Kd2
{[%clk 0:01:08.1]} 59... Kd5 {[%clk 0:00:02.5]} 60. Bg1 {[%clk 0:01:08.3]} 60...
Kc4 {[%clk 0:00:03.4]} 61. Kc1 {[%clk 0:01:08.9]} 61... Kb3 {[%clk 0:00:04.3]}
62. Kb1 {[%clk 0:01:09.4]} 62... a3 {[%clk 0:00:05.2]} 63. Ka1 {[%clk
0:01:10.1]} 63... a2 {[%clk 0:00:05.9]} 64. Ba7 {[%clk 0:01:10.4]} 64... Bd5
{[%clk 0:00:06.8]} 65. Bb6 {[%clk 0:01:11.3]} 65... Kc2 {[%clk 0:00:07.4]} 66.
Ba7 {[%clk 0:01:12.2]} 66... Kd3 {[%clk 0:00:08.1]} 67. Bb8 {[%clk 0:01:12.8]}
67... Ke2 {[%clk 0:00:09]} 68. Bc7 {[%clk 0:01:13.3]} 68... Kf3 {[%clk
0:00:09.7]} 69. Bd6 {[%clk 0:01:13.9]} 69... g3 {[%clk 0:00:10.4]} 70. Bxg3
{[%clk 0:01:14.6]} 70... Kxg3 {[%clk 0:00:11.3]} 71. Kb2 {[%clk 0:01:15]} 71...
Kf3 {[%clk 0:00:11.9]} 72. Ka1 {[%clk 0:01:15.9]} 72... Ke3 {[%clk 0:00:12.6]}
73. Kb2 {[%clk 0:01:16.8]} 73... Kd3 {[%clk 0:00:13.5]} 74. Ka1 {[%clk
0:01:17.7]} 74... Kc4 {[%clk 0:00:14.4]} 75. Kb2 {[%clk 0:01:18.6]} 75... Kb4
{[%clk 0:00:15.2]} 76. Ka1 {[%clk 0:01:19.5]} 76... Kb3 {[%clk 0:00:16.1]}
1/2-1/2

[Event "*** Titled Tuesday Blitz"]
[Site "Chess.com"]
[Date "2021.04.20"]
[Round "3"]
[White "ybruned"]
[Black "LifeIsAllAboutChess23"]
[Result "0-1"]
[WhiteElo "2323"]
[BlackElo "2142"]
[TimeControl "180+1"]
[EndTime "10:27:51 PDT"]
[Termination "LifeIsAllAboutChess23 won by checkmate"]

1. b3 {[%clk 0:03:00.9]} 1... e5 {[%clk 0:02:59]} 2. Bb2 {[%clk 0:03:00.3]} 2...
Nc6 {[%clk 0:02:59]} 3. e3 {[%clk 0:03:00.8]} 3... d5 {[%clk 0:02:58.2]} 4. Bb5
{[%clk 0:03:00.8]} 4... Bd6 {[%clk 0:02:57.6]} 5. f4 {[%clk 0:03:01.4]} 5...
Qh4+ {[%clk 0:02:54.9]} 6. g3 {[%clk 0:02:55.8]} 6... Qe7 {[%clk 0:02:54.4]} 7.
Nf3 {[%clk 0:02:20.5]} 7... exf4 {[%clk 0:02:49]} 8. gxf4 {[%clk 0:02:09.3]}
8... Nf6 {[%clk 0:02:39.8]} 9. Nc3 {[%clk 0:01:54.9]} 9... Bxf4 {[%clk
0:02:35.5]} 10. Qe2 {[%clk 0:01:50.9]} 10... Bd6 {[%clk 0:02:03.9]} 11. O-O-O
{[%clk 0:01:49.7]} 11... Bd7 {[%clk 0:01:50.1]} 12. Rhg1 {[%clk 0:01:39.8]}
12... Rg8 {[%clk 0:01:43.8]} 13. Bxc6 {[%clk 0:01:19.2]} 13... Bxc6 {[%clk
0:01:09.9]} 14. Nd4 {[%clk 0:01:18.3]} 14... Bd7 {[%clk 0:01:07.3]} 15. Rdf1
{[%clk 0:01:17.3]} 15... O-O-O {[%clk 0:01:03.6]} 16. Ncb5 {[%clk 0:00:46.3]}
16... Bc5 {[%clk 0:01:00.2]} 17. Nf5 {[%clk 0:00:44.5]} 17... Bxf5 {[%clk
0:00:59.1]} 18. Rxf5 {[%clk 0:00:43.7]} 18... c6 {[%clk 0:00:58.4]} 19. Nd4
{[%clk 0:00:42.5]} 19... g6 {[%clk 0:00:57.7]} 20. Rf3 {[%clk 0:00:38.2]} 20...
Ne4 {[%clk 0:00:56.9]} 21. d3 {[%clk 0:00:35.6]} 21... Nd6 {[%clk 0:00:52.2]}
22. Qf2 {[%clk 0:00:34.7]} 22... f5 {[%clk 0:00:50.6]} 23. Kb1 {[%clk
0:00:33.3]} 23... Rde8 {[%clk 0:00:49.5]} 24. Qd2 {[%clk 0:00:28.6]} 24... Nf7
{[%clk 0:00:46.8]} 25. Qc3 {[%clk 0:00:23.8]} 25... Ne5 {[%clk 0:00:45.5]} 26.
Rfg3 {[%clk 0:00:24.2]} 26... Ng4 {[%clk 0:00:44.1]} 27. e4 {[%clk 0:00:21.3]}
27... dxe4 {[%clk 0:00:41.8]} 28. dxe4 {[%clk 0:00:20]} 28... Bxd4 {[%clk
0:00:41.8]} 29. Qxd4 {[%clk 0:00:18.8]} 29... c5 {[%clk 0:00:40.3]} 30. Qa4
{[%clk 0:00:15.3]} 30... Qxe4 {[%clk 0:00:36.5]} 31. Qxa7 {[%clk 0:00:14.9]}
31... Qc6 {[%clk 0:00:36.4]} 32. Rc3 {[%clk 0:00:11.5]} 32... b6 {[%clk
0:00:31.6]} 33. Qa6+ {[%clk 0:00:10.6]} 33... Qb7 {[%clk 0:00:29.9]} 34. Qb5
{[%clk 0:00:11.2]} 34... Qd7 {[%clk 0:00:28]} 35. Rc1 {[%clk 0:00:11.2]} 35...
Qxb5 {[%clk 0:00:27.4]} 36. a4 {[%clk 0:00:10.7]} 36... Qc6 {[%clk 0:00:26.1]}
37. b4 {[%clk 0:00:11]} 37... Re3 {[%clk 0:00:22]} 38. Rc4 {[%clk 0:00:09.9]}
38... Re4 {[%clk 0:00:21.7]} 39. b5 {[%clk 0:00:09.1]} 39... Qd5 {[%clk
0:00:21.1]} 40. Rc3 {[%clk 0:00:09.4]} 40... Rxa4 {[%clk 0:00:20.3]} 41. Rb3
{[%clk 0:00:10.1]} 41... Qc4 {[%clk 0:00:19.8]} 42. Rd1 {[%clk 0:00:09.9]} 42...
Rd8 {[%clk 0:00:18.8]} 43. Re1 {[%clk 0:00:10.1]} 43... Nf2 {[%clk 0:00:17.4]}
44. Rc1 {[%clk 0:00:09.8]} 44... Ne4 {[%clk 0:00:17.3]} 45. Rc3 {[%clk
0:00:09.4]} 45... Nxc3+ {[%clk 0:00:17]} 46. Bxc3 {[%clk 0:00:09.6]} 46... Qa2#
{[%clk 0:00:17.5]} 0-1